Cogmind - Beta 16 @@@ ROGUE MODE // 2025.12.08 @ 12:27:40 Player: flignut Result: Destroyed by C-17 Slicer with Blade Saw Performance ------------- Evolutions (2) 1000 Regions Visited (3) 600 Robots Destroyed (77) 385 Value Destroyed (1584) 1584 Prototype IDs (1) 20 Alien Tech Used (0) 0 Bonus (50) 50 TOTAL SCORE: 3639 Bonus ------- High Alert Combat Kills 50 Cogmind --------- Core Integrity 0/550 Matter 122/300 Energy 100/100 System Corruption 0% Temperature Cool (0) Movement Core (50) Location -8/Materials Parts ------- > --- POWER (1) -------- (None) > --- PROPULSION (3) --- (None) > --- UTILITY (4) ------ (None) > --- WEAPON (3) ------- (None) > --- INVENTORY (5) ---- Light Ion Engine Visual Processing Unit Improved Signal Interpreter System Shield Mini Grenade Launcher Peak State ------------ > --- POWER ------------ Light Ion Engine > --- PROPULSION ------- Airjet Airjet Airjet > --- UTILITY ---------- Large Storage Unit ECM Suite Hardened Medium Armor Plating Hacking Suite > --- WEAPON ----------- Light Assault Rifle Grenade Launcher > --- INVENTORY -------- Light Ion Engine Light Treads Light Treads Medium Storage Unit Visual Processing Unit Signal Interpreter Seismic Detector Transport Network Coupler Hardened Medium Armor Plating Hardened Medium Armor Plating Heavy EM Shotgun Light Assault Rifle Light Assault Rifle Flail Katana [Rating: 22] Favorites ----------- Power Ion Engine Engine Ion Engine Propulsion Light Treads Treads Light Treads Hover Unit Airjet Utility Large Storage Unit Device ECM Suite Storage Large Storage Unit Hackware Hacking Suite Protection Light Armor Plating Weapon Heavy Assault Rifle Energy Gun Medium Laser Ballistic Gun Heavy Assault Rifle Launcher Grenade Launcher Impact Weapon Flail Slashing Weapon Katana Build | -11 -10 -9 -8 ------- Run | Yrd Mat Mat Mat Slots Evolved 4 | . . 2 2 Power . | . . . . Propulsion 1 | . . . 1 Utility 2 | . . 2 . Weapon 1 | . . . 1 Parts Attached 41 | 7 9 12 13 Power 4 | 1 1 1 1 Engine 4 | 1 1 1 1 Core . | . . . . Reactor . | . . . . Propulsion 9 | 2 . 3 4 Treads 6 | 2 . 3 1 Leg . | . . . . Wheel . | . . . . Hover 3 | . . . 3 Flight . | . . . . Utility 11 | 1 3 5 2 Device 1 | . . 1 . Storage 4 | 1 1 . 2 Processor . | . . . . Hackware 1 | . . 1 . Protection 5 | . 2 3 . Artifact . | . . . . Weapon 17 | 3 5 3 6 Energy Gun 3 | 2 . . 1 Energy Cannon . | . . . . Ballistic Gun 9 | 1 2 2 4 Ballistic Cannon . | . . . . Launcher 3 | . 3 . . Special Weapon . | . . . . Impact Weapon 1 | . . 1 . Slashing Weapon 1 | . . . 1 Piercing Weapon . | . . . . Special Melee Weapon . | . . . . Unidentified Prototypes 1 | . . . 1 Parts Lost 13 | . 2 3 8 Power 2 | . . 1 1 Propulsion 5 | . . 2 3 Utility 2 | . 1 . 1 Weapon 4 | . 1 . 3 Highest Loss Streak 5 | . 1 1 5 To Critical Strikes . | . . . . Average Backups 11 | 3 10 13 8 Power . | 1 1 . 1 Propulsion 1 | 1 2 1 . Utility 6 | . 5 7 4 Weapon 2 | . 2 2 3 Tool/Special . | . . . . Unused Backups 13 | . . 3 10 Power 1 | . . . 1 Propulsion 3 | . . 2 1 Utility 7 | . . . 7 Weapon 2 | . . 1 1 Tool/Special . | . . . . Average Slot Usage (%) 88 | . 98 85 81 Engine 11 | . 13 10 8 Treads 19 | . 27 18 8 Hover 3 | . . . 14 Device 4 | . . 7 8 Storage 11 | . 14 11 8 Hackware 4 | . . 5 8 Protection 10 | . 13 12 2 Ballistic Gun 14 | . 17 12 13 Launcher 4 | . 7 2 5 Impact Weapon 2 | . . 4 . Peak Build Rating 22 | 6 8 17 22 Average Rating 11 | 4 7 12 16 On Entrance 7 | . 6 8 16 Avg Prop Armor Cover (%) . | . . . . Naked Turns 48 | . . . 48 Heaviest Build 44 | 13 33 43 44 Greatest Support 60 | 40 40 40 60 Greatest Overweight (x) 4 | . . 2 4 Average Overweight (x) . | . . . . Largest Inventory Capacity 15 | 8 15 15 15 Average Capacity 13 | 7 14 15 10 Most Carried 15 | 5 15 15 15 Average Carried 11 | 3 10 13 8 Final Capacity 15 | 8 15 15 5 Final Carried 13 | 4 11 13 5 Class Distribution -------------------- 90% | Mutant 6% | Scavenger-Gunner Dominant Class ---------------- Mutant | -10/Materials Mutant | -9/Materials Mutant | -8/Materials Resources | -11 -10 -9 -8 ----------- Run | Yrd Mat Mat Mat Matter Collected 1481 | 187 306 782 206 Remotely . | . . . . Salvage Created 1796 | . 364 1171 261 Parts 130 | . 42 69 19 Haulers Intercepted 5 | . 2 2 1 Recyclers Shooed 2 | . 1 . 1 Parts Field Recycled . | . . . . Retrieved Matter . | . . . . Parts Self-Destructed . | . . . . Prevented . | . . . . Parts Restored . | . . . . Kills | -11 -10 -9 -8 ------- Run | Yrd Mat Mat Mat Combat Hostiles Destroyed 51 | . 15 26 10 Melee 2 | . . 2 . Guns 21 | . 8 11 2 AOE 26 | . 7 11 8 Classes Destroyed 12 | . 8 2 2 Worker 5 | . 1 4 . Builder 5 | . 1 3 1 Hauler 5 | . 2 2 1 Recycler 4 | . 1 2 1 Operator 2 | . 1 1 . Watcher 5 | . 2 3 . Swarmer 21 | . 12 5 4 Cutter 1 | . . . 1 Grunt 24 | . 3 17 4 Duelist 1 | . . 1 . Sentry 3 | . . 3 . Hunter 1 | . . . 1 Best Kill Streak 11 | . 9 11 6 Combat Bots Only 6 | . 6 4 6 Max Kills in Single Turn 4 | . 4 2 4 Gunslinging . | . . . . Exploded 4 | . 2 2 4 Melee 1 | . . 1 . Uniques/NPCs Destroyed . | . . . . Combat | -11 -10 -9 -8 -------- Run | Yrd Mat Mat Mat Hostile Shots Fired 292 | . 75 106 111 Missed 89 | . 21 33 35 Hits 203 | . 54 73 76 Melee 25 | . . 4 21 Projectile 178 | . 54 69 55 AOE 1 | . . . 1 Critical Strikes 12 | . . 3 9 Damage Taken 2958 | . 544 994 1420 Core 727 | . 44 132 551 Absorbed by Shields . | . . . . Regen/Repaired (Parts) 275 | . 43 232 . Core Remaining (%) 83 | 100 82 67 . Volleys Fired 130 | . 36 65 29 Largest 3 | . 2 2 3 Hottest 76 | . 70 53 76 Shots Fired 237 | . 59 121 57 Gun 189 | . 43 105 41 Cannon . | . . . . Launcher 48 | . 16 16 16 Special . | . . . . Kinetic 183 | . 39 105 39 Thermal 4 | . 4 . . Explosive 48 | . 16 16 16 Electromagnetic 2 | . . . 2 Robot Hit Streak 12 | . 8 12 8 Robot Miss Streak 5 | . 4 2 5 Penetration Max . | . . . . Secondary Targets . | . . . . Shots Hit Robots 166 | . 31 98 37 Core Hits 127 | . 32 62 33 Critical Kills 1 | . 1 . . Critical Parts Destroyed 7 | . 1 6 . Critical Strikes 9 | . 2 7 . Destroy 3 | . 2 1 . Smash 6 | . . 6 . Melee Attacks 50 | . . 33 17 Impact 33 | . . 33 . Slashing 17 | . . . 17 Piercing . | . . . . Sneak Attacks 4 | . . 3 1 Combat Hostiles . | . . . . Follow-up Attacks . | . . . . Damage Inflicted 5481 | . 1215 2983 1283 Guns 1623 | . 283 1050 290 Cannons . | . . . . Explosions 3059 | . 932 1228 899 Melee 798 | . . 704 94 Ramming 1 | . . 1 . Kinetic 1585 | . 257 1050 278 Thermal 43 | . 26 . 17 Explosive 3042 | . 932 1228 882 Electromagnetic 12 | . . . 12 Impact 704 | . . 704 . Slashing 94 | . . . 94 Piercing . | . . . . Highest Corruption . | . . . . Average Corruption . | . . . . Corruption Purged . | . . . . Corruption Blocked . | . . . . Overload Shots . | . . . . Overflow Damage 418 | . 18 400 . Projectiles . | . . . . Explosions 60 | . 18 42 . Melee 358 | . . 358 . Knockbacks 2 | . . 2 . Impact 2 | . . 2 . Kinetic . | . . . . Secondary . | . . . . Self-Inflicted Damage 99 | . 20 33 46 Shots 7 | . 2 3 2 Rammed 1 | . . 1 . Targets Rammed 1 | . . 1 . Kicked . | . . . . Crushed . | . . . . Highest Temperature 104 | . 78 18 104 Average Temperature 19 | . 21 5 34 Received Heat Transfer 669 | . 42 366 261 Siege Activations . | . . . . Martial Activations . | . . . . Shielding Activations . | . . . . Robots Disrupted . | . . . . Combat Hostiles . | . . . . Robots Corrupted 3 | . . 3 . Combat Hostiles 2 | . . 2 . Parts Fried 5 | . . 5 . Impact Corruptions 10 | . . 10 . Robots Melted . | . . . . Combat Hostiles . | . . . . Parts Melted . | . . . . Heat Transferred 124 | . 74 . 50 Parts Sabotaged . | . . . . Parts Stolen . | . . . . Parts Stripped . | . . . . Power Chain Reactions . | . . . . Alert | -11 -10 -9 -8 ------- Run | Yrd Mat Mat Mat Maximum Alert Level 2 | . . 2 2 Low Security (%) 44 | 100 100 14 13 Level 1 35 | . . 40 85 Level 2 20 | . . 45 . Level 3 . | . . . . Level 4 . | . . . . Level 5 . | . . . . High Security . | . . . . Max Security . | . . . . Peak Influence 490 | . 182 490 403 Initial 165 | . . 52 165 Average 254 | . 111 349 301 Influence Increases 1914 | . 518 888 508 Destroy 0b10 Robot/C 1020 | . 300 520 200 Destroy 0b10 Robot/NC 130 | . 40 75 15 Destroy Leader 220 | . 68 120 32 Successful Hack 70 | . 35 23 12 Disable Machine 75 | . . 15 60 Destroy Structure 234 | . 60 90 84 Lose Combat Pursuer 165 | . 15 45 105 Influence Decreases 1615 | . 392 622 601 Entered New Map 301 | . . 74 227 Time Decay 1184 | . 372 518 294 Lost Part 130 | . 20 30 80 Squads Dispatched 10 | . 2 3 5 Investigation 1 | . . . 1 Extermination . | . . . . Reinforcement 9 | . 2 3 4 Assault . | . . . . Garrison . | . . . . Intercept . | . . . . Searches Triggered . | . . . . Construction Impeded 2 | . . 1 1 Haulers Reinforced . | . . . . Active Scanning Responses . | . . . . Cargo Convoy Interrupts . | . . . . Stealth | -11 -10 -9 -8 --------- Run | Yrd Mat Mat Mat Distress Signals 8 | . 3 5 . Communications Jammed . | . . . . Distress Signals . | . . . . Times Spotted 100 | . 22 48 30 Peak Tracking Total 7 | . 6 7 7 Tactical Retreats 11 | . 1 7 3 ECM-based Alert Blocks 5 | . . 5 . Traps | -11 -10 -9 -8 ------- Run | Yrd Mat Mat Mat Traps Triggered 2 | . 2 . . Indirectly . | . . . . Trap Hack Attempts . | . . . . Triggered . | . . . . Disarmed . | . . . . Reprogrammed . | . . . . Reused . | . . . . Traps Extracted . | . . . . Installed . | . . . . Triggered . | . . . . Machines | -11 -10 -9 -8 ---------- Run | Yrd Mat Mat Mat Machines Disabled 5 | . . 1 4 Max in Single Turn 2 | . . 1 2 Machines Repaired . | . . . . Machines Dismantled . | . . . . Machines Sabotaged . | . . . . Overloaded Fab Kills . | . . . . Hacking | -11 -10 -9 -8 --------- Run | Yrd Mat Mat Mat Machines Accessed 17 | . 7 7 3 Terminals 15 | . 6 6 3 Fabricators . | . . . . Repair Stations 2 | . 1 1 . Recycling Units . | . . . . Scanalyzers . | . . . . Garrison Access . | . . . . Total Hacks 64 | . 28 28 8 Successful 37 | . 15 17 5 Failed 26 | . 12 11 3 Catastrophic 4 | . 2 1 1 Database Lockouts 1 | . 1 . . Manual 43 | . 21 17 5 Terminals 56 | . 24 24 8 Fabricators . | . . . . Repair Stations 8 | . 4 4 . Recycling Units . | . . . . Scanalyzers . | . . . . Garrison Access . | . . . . Terminal Hacks 18 | . 7 8 3 Record 1 | . 1 . . Robot Analysis 4 | . 3 1 . Level Access Points 2 | . 1 1 . Branch Access Points 1 | . . . 1 Emergency Access Points 1 | . . 1 . Terminal Index 2 | . 1 1 . Alert Level 1 | . . 1 . Locate Traps 1 | . . 1 . Dispatch Records 1 | . 1 . . Hauler Manifests 2 | . . 1 1 Zone Layout 2 | . . 1 1 Fabricator Hacks . | . . . . Repair Station Hacks 7 | . 3 4 . Scan Component 4 | . 2 2 . Repair 3 | . 1 2 . Recycling Unit Hacks . | . . . . Scanalyzer . | . . . . Garrison Access Hacks . | . . . . Unauthorized Hacks 12 | . 5 5 2 Terminals 12 | . 5 5 2 Track 1 | . 1 . . Botnet 11 | . 4 5 2 Fabricators . | . . . . Repair Stations . | . . . . Recycling Units . | . . . . Scanalyzers . | . . . . Garrison Access . | . . . . Data Cores Recovered . | . . . . Used . | . . . . Hacking Detections 17 | . 7 7 3 Full Trace Events 1 | . . . 1 Feedback Events . | . . . . Feedback Blocked . | . . . . Robot Schematics Acquired . | . . . . Robots Built . | . . . . Authchips . | . . . . Time . | . . . . Total Robot Build Rating . | . . . . Part Schematics Acquired . | . . . . Parts Built . | . . . . Authchips . | . . . . Time . | . . . . Total Part Build Rating . | . . . . Part Studies Acquired . | . . . . Parts Repaired 3 | . 1 2 . Time 84 | . 26 58 . Parts Recycled . | . . . . Recycled Matter . | . . . . Retrieved Matter . | . . . . Retrieved Components . | . . . . Parts Scanalyzed . | . . . . Part Schematics Acquired . | . . . . Parts Damaged . | . . . . Bothacking | -11 -10 -9 -8 ------------ Run | Yrd Mat Mat Mat Used RIF Installer . | . . . . Robots Hacked . | . . . . Non-combat . | . . . . Combat . | . . . . Robot Hacks Applied . | . . . . Relay Couplers Released . | . . . . Fabnet Peak Effective % . | . . . . Robots Rewired . | . . . . Allies Hacked . | . . . . Hacks Repelled . | . . . . Allies | -11 -10 -9 -8 -------- Run | Yrd Mat Mat Mat Total Allies . | . . . . Largest Group . | . . . . Highest-Rated Group . | . . . . Highest-Rated Ally . | . . . . Total Orders . | . . . . Ally Attacks . | . . . . Total Damage . | . . . . Kills . | . . . . Allies Corrupted . | . . . . Allies Melted . | . . . . Intel | -11 -10 -9 -8 ------- Run | Yrd Mat Mat Mat Active Infowar (turns) 1153 | . . 925 228 ECM 1153 | . . 925 228 Robot Analysis Total 4 | . 3 1 . Derelict Logs Recovered . | . . . . Drone Launches . | . . . . Drone Recoveries . | . . . . Exploration | -11 -10 -9 -8 ------------- Run | Yrd Mat Mat Mat Turns Passed 3172 | 70 1033 1426 643 Spaces Moved 1666 | 47 453 544 622 Core 93 | 19 . . 74 Treads 1107 | 28 453 544 82 Legs . | . . . . Wheels . | . . . . Hover 466 | . . . 466 Flight . | . . . . Fastest Speed 50 | 50 160 160 50 Average Speed 133 | 115 160 189 67 Slowest Speed 320 | 160 160 320 300 Overloaded Moves . | . . . . Propulsion Burnouts . | . . . . Robots Hopped . | . . . . Potential Cave-ins 5 | . . . 5 Cave-ins Triggered . | . . . . Exploration Rate (%) 44 | 4 76 56 41 Regions Visited 3 Branch Regions . Pre-discovered Areas . | . . . . Known Exits Taken 2 | . 1 1 . Unknown Exits Taken 1 | 1 . . . Scrap Searched . | . . . . Spaces Dug 19 | . . 7 12 Terrain Destroyed 273 | . 62 115 96 Melee 19 | . . 7 12 Projectile . | . . . . AOE 254 | . 62 108 84 Terrain Rammed . | . . . . Walls Destroyed . | . . . . Machines Disabled . | . . . . Actions | -11 -10 -9 -8 --------- Run | Yrd Mat Mat Mat Total 2315 | 62 705 770 778 Wait 329 | . 181 84 64 Move 1663 | 46 452 543 622 Hop . | . . . . Pick Up 48 | 8 17 13 10 Fast Attach 10 | 2 . 3 5 Attach 36 | 5 8 12 11 Detach 9 | 1 1 5 2 Swap 10 | . 5 4 1 Drop 29 | . 5 7 17 Fire 130 | . 36 65 29 Melee 50 | . . 33 17 Ram . | . . . . Kick . | . . . . Crush 1 | . . 1 . Escape Stasis . | . . . . Rewire . | . . . . Trap . | . . . . Miscellaneous . | . . . . Route ------- -11/Scrapyard -10/Materials (discovered 3 exits: *Mat x3) -9/Materials (discovered 5 exits: *Mat x3 / [*Min] / [*Sto]) -8/Materials History --------- Turn | Location | Event 11 | -11/Scrapyard | Discovered new exit (range 15) 71 | -11/Scrapyard | Entered Materials 72 | -10/Materials | Met a group of wandering Federalists 306 | -10/Materials | Build established: Mutant 316 | -10/Materials | Discovered new exit (range 15) 393 | -10/Materials | Discovered new exit (range 7) 450 | -10/Materials | Identified exit to Materials 450 | -10/Materials | Central database locked down 776 | -10/Materials | Repaired Lgt. Treads 1104 | -10/Materials | Entered another Materials area 1104 | -9/Materials | Evolved 2 slots: Utility x2 1323 | -9/Materials | Discovered new exit (range 11) 2002 | -9/Materials | Discovered new exit (range 4) 2014 | -9/Materials | Identified exit to Materials 2098 | -9/Materials | Repaired Lgt. Treads 2131 | -9/Materials | Repaired Hvy. Assault Rifle 2193 | -9/Materials | Discovered new exit (range 16) 2530 | -9/Materials | Entered another Materials area 2530 | -8/Materials | Evolved 2 slots: Propulsion x1, Weapon x1 3111 | -8/Materials | Core integrity fell below 50% 3125 | -8/Materials | Released all parts (4) 3149 | -8/Materials | Lost 5 parts (1p2n1u1w) 3157 | -8/Materials | Core integrity fell below 20% 3173 | -8/Materials | Destroyed by C-17 Slicer with Blade Saw Last Messages --------------- 03109_ Hpw. Shotgun severed. 03111_ Acquired 5 matter. 03114_ Airjet destroyed. 03115_ Acquired 6 matter. 03115_ Lgt. Assault Rifle severed. 03118_ Hacking Suite destroyed. 03123_ C-17 Slicer destroyed. 03125_ Acquired 3 matter. 03125_ Released Katana. 03125_ Released ECM Suite. 03125_ Released Sml. Storage Unit. 03125_ Released Lgt. Assault Rifle. 03128_ U-05 Engineer builds a Wall. 03131_ Knocked back. 03131_ W-25 Informer destroyed. 03132_ U-05 Engineer lays Concrete. 03134_ K-01 Serf collects debris. 03153_ Critical hit (Burn: +37). 03159_ K-01 Serf collects debris. 03165_ K-01 Serf cleans the Material Compactor. Map ----- +----------------------------------------------------+ | ????????????????????????????????????????????????? | | ????????????????????????????????????????????????? | | ????????????????????????????????????????????????? | | ????????????????????????????????????????????????? | | ????????????????????????????????????????????????? | | ????????????????????????????????????????????????? | | ????????????????????????????????????????????????? | | ????????????????????????????????????????????????? | | ????????????????????????????????????????????????? | | ????????????????????????????????????????????????? | | ????????????????????????????????????????????????? | | ????????????????????????????????????????????????? | | ????????????????????????????????????????????????? | | ????????????????????????????????????????????????? | | ???????????????????????????????????###+###??????? | | ??????????????????????????????????? ????? | | ?????????????????????????????????? ??? | | ??????????????????????????????????# ??? | | ??????????????????????????????????# ??? | | ??????????????????????????????????# ???? | | ??????????????????????????????????# ????? | | ????????????????????? ???????????# ?????? | | ????????????????????? ???????????# ???????? | | ????????????????????? ############ ????????? | | ????????????????????# # cl k! ## ##????????? | | ????????????????????+ #@"""gg # #????????? | | ????????????????????# #""""" # #????????? | | ????????????????????# #""""" + #????????? | | ????????????????????# #""""" # #????????? | | ??????????????? ? # # """ !# #????????? | | ????????????? [ # # ## ##????????? | | ???????????? # # !## #?????????? | | ???????????# # ############ #?????????? | | ???????????# # #??????????# #?????????? | | ???????????# """"" # #??????????# #?????????? | | ???????????# """"" # #??????????# #?????????? | | ???????????? """"" # #??????????# #?????????? | | ?????????????? ?# #??????????# #?????????? | | ?########???####+#### ############ ####??????? | | ?# """ #???# #??????? | | ?# """ #???# ######## | | ?# """ #???# # | | ?# #???####+##################### # """ | | ?# #???# #?????# # # """"" | | ?# #???# """"" #?????# # # """"" | | ?####+###???# """"" #?????# """ """ + + """"" | | ???# #????# """"" #?????# """ """ # # """ | | ???# #????# """"" #?????# """ """ # # | | ???# ###### """"" #?????# # # ! | | ???## + """"" #?????# # # | +----------------------------------------------------+ Best States ------------- Heat Dissipation 31 Energy Generation 10 Energy Capacity 250 Matter Stores 300 Matter Capacity 300 Sight Range 16 Terrain Scan Density 10 ECM Strength 1 Armor Coverage 375 Evasion (%) 54 Recoil Reduction 3 Offensive Hacking 10 Item Schematics ----------------- None Robot Schematics ------------------ None Fabricated ------------ Nothing Repaired ---------- Lgt. Treads | 69% | -10/Materials Lgt. Treads | 12% | -9/Materials Hvy. Assault Rifle | 4% | -9/Materials Studied --------- None Alien Tech Used ----------------- None Achievements -------------- Resistances Are Futile Challenges ------------ None Game ------ Seed SensorFlightShockpuncher Manual? 0 Play Time 01:11:11 Cumulative 25.1 hours Start 2025.12.06 @ 16:26:47 End 2025.12.08 @ 12:27:40 Sessions 3 Manual Loads 0 Difficulty Rogue Special Mode None Game No. 15 Rogue 15 Adventurer 0 Explorer 0 Win Type - Total 0 Types 0/0/0/0/0/0/0/0/0/0 Lore% 8 Gallery% 17 Achievement% 13 Wizard Run 0 Options --------- Layout 1 ASCII 0 Keyboard 0 Movement Mouse Keybinds 0 Fullscreen 1 Font 24/Smallcaps Map View 50x35 Zoom Use 0% Tactical HUD 1 Map Filters NONE Filters NONE Steam 1 RUN: 8e813068-fd2e-4634-8e30-dc0f1aa8f6c7